fUSD/lending_fUSD_20260112
["ID","MTS","AMOUNT","RATE_DAILY","PERIOD"]
[401454215,1768235439932,-150.0,0.0001692,2]
[401454218,1768235439942,-150.0,0.0001692,2]
[401454220,1768235439951,-1000.0,0.00016922,2]
[401454221,1768235439960,-500.0,0.00016922,2]
[401454224,1768235439969,-674.0,0.00016922,2]
[401454226,1768235439980,-500.0,0.00016929,2]
[401454228,1768235439990,-107837.66791739,0.0001693,2]
[401454230,1768235439999,-326.08693291,0.00016931,2]
[401454232,1768235440008,-5853.53682183,0.00016934,2]
[401454234,1768235440017,-488.15,0.00016938,2]
[401454236,1768235440027,-1000.0,0.00016946,2]
[401454238,1768235440036,-150.0,0.00016946,2]
[401454239,1768235440046,-9468.35149038,0.00016947,2]
[401454242,1768235440055,-150.0,0.0001695,2]
[401454243,1768235440065,-150.0,0.0001695,2]
[401454246,1768235440074,-150.0,0.00016956,2]
[401454248,1768235440085,-789.0,0.00016963,2]
[401454250,1768235440096,-368.63457312,0.00016972,2]
[401454252,1768235440105,-500.0,0.00016977,2]
[401454254,1768235440115,-674.0,0.00016977,2]
[401454256,1768235440124,-200.0,0.00016986,2]
[401454258,1768235440133,-150.0,0.0001699,2]
[401454260,1768235440143,-150.0,0.00016992,2]
[401454262,1768235440154,-151.0,0.00016997,2]
[401454264,1768235440163,-1695.16563875,0.00016998,2]
[401454266,1768235440172,-150.0,0.00017,2]
[401454268,1768235440182,-150.0,0.00017,2]
[401454270,1768235440192,-85307.74747927,0.00017,2]
[401454272,1768235440201,-250.0,0.00017,2]
[401454274,1768235440210,-225.13457576,0.00017,2]
[401454276,1768235440220,-150.0,0.0001701,2]
[401454278,1768235440230,-789.0,0.00017018,2]
[401454281,1768235440241,-150.0,0.00017018,2]
[401454284,1768235440251,-194.72792766,0.0001702,2]
[401454287,1768235440261,-500.0,0.0001702,2]
[401454290,1768235440271,-500.0,0.0001702,2]
[401454293,1768235440281,-533.88981491,0.0001702,2]
[401454295,1768235440291,-500.0,0.0001702,2]
[401454297,1768235440300,-500.0,0.0001702,2]
[401454299,1768235440309,-500.0,0.0001702,2]
[401454301,1768235440319,-322.6107,0.0001702,2]
[401454303,1768235440328,-500.0,0.0001702,2]
[401454305,1768235440337,-500.0,0.0001702,2]
[401454308,1768235440347,-500.0,0.0001702,2]
[401454311,1768235440357,-500.0,0.0001702,2]
[401454314,1768235440366,-500.0,0.0001702,2]
[401454316,1768235440376,-500.0,0.0001702,2]
[401454318,1768235440385,-500.0,0.0001702,2]
[401454320,1768235440395,-500.0,0.0001702,2]
[401454322,1768235440405,-500.0,0.0001702,2]
[401454324,1768235440414,-500.0,0.0001702,2]
[401454326,1768235440424,-500.0,0.0001702,2]
[401454328,1768235440434,-500.0,0.0001702,2]
[401454330,1768235440444,-500.0,0.0001702,2]
[401454332,1768235440454,-500.0,0.0001702,2]
[401454334,1768235440463,-250.0,0.0001702,2]
[401454336,1768235440473,-500.0,0.0001702,2]
[401454338,1768235440483,-706.57931957,0.0001702,2]
[401454340,1768235440493,-500.0,0.0001702,2]
[401454342,1768235440503,-500.0,0.0001702,2]
[401454344,1768235440513,-250.0,0.0001702,2]
[401454346,1768235440523,-500.0,0.0001702,2]
[401454348,1768235440532,-250.0,0.0001702,2]
[401454350,1768235440542,-500.0,0.0001702,2]
[401454352,1768235440551,-500.0,0.0001702,2]
[401454354,1768235440561,-250.0,0.0001702,2]
[401454356,1768235440570,-500.0,0.0001702,2]
[401454358,1768235440579,-500.0,0.0001702,2]
[401454360,1768235440589,-250.0,0.0001702,2]
[401454362,1768235440599,-500.0,0.0001702,2]
[401454364,1768235440608,-724.98153853,0.0001702,2]
[401454366,1768235440618,-500.0,0.0001702,2]
[401454368,1768235440627,-250.0,0.0001702,2]
[401454370,1768235440637,-500.0,0.0001702,2]
[401454372,1768235440646,-500.0,0.0001702,2]
[401454374,1768235440655,-250.0,0.0001702,2]
[401454376,1768235440666,-500.0,0.0001702,2]
[401454378,1768235440676,-500.0,0.0001702,2]
[401454380,1768235440685,-250.0,0.0001702,2]
[401454382,1768235440695,-500.0,0.0001702,2]
[401454384,1768235440704,-285.08125974,0.0001702,2]
[401454386,1768235440714,-500.0,0.0001702,2]
[401454388,1768235440723,-500.0,0.0001702,2]
[401454390,1768235440733,-500.0,0.0001702,2]
[401454392,1768235440743,-500.0,0.0001702,2]
[401454394,1768235440753,-500.0,0.0001702,2]
[401454396,1768235440763,-620.0,0.0001702,2]
[401454398,1768235440771,-250.0,0.0001702,2]
[401454400,1768235440780,-250.0,0.0001702,2]
[401454402,1768235440789,-151.0,0.0001702,2]
[401454404,1768235440798,-250.0,0.0001702,2]
[401454406,1768235440808,-214.19143741,0.0001702,2]
[401454408,1768235440817,-1025.94323817,0.0001702,2]
[401454410,1768235440826,-998.0,0.0001702,2]
[401454412,1768235440836,-150.0,0.00017028,2]
[401454414,1768235440845,-500.0,0.00017032,2]
[401454416,1768235440855,-674.0,0.00017032,2]
[401454418,1768235440864,-150.0,0.00017034,2]
[401454421,1768235440874,-770.88368718,0.00017038,2]
[401454423,1768235440883,-150.0,0.0001705,2]
[401454425,1768235440893,-196.11,0.0001706,2]
[401454428,1768235440903,-150.0,0.00017064,2]
[401454430,1768235440912,-10623.0,0.00017068,2]
[401454432,1768235440922,-27554.33702356,0.00017072,2]
[401454434,1768235440931,-323.61319503,0.00017073,2]
[401454436,1768235440940,-500.0,0.00017073,2]
[401454438,1768235440949,-500.0,0.00017073,2]
[401454439,1768235440958,-500.0,0.00017073,2]
[401454441,1768235440967,-500.0,0.00017073,2]
[401454443,1768235440978,-500.0,0.00017073,2]
[401454445,1768235440988,-500.0,0.00017073,2]
[401454447,1768235440997,-500.0,0.00017073,2]
[401454449,1768235441006,-501.96234831,0.00017073,2]
[401454451,1768235441015,-500.74413922,0.00017073,2]
[401454453,1768235441024,-500.77801395,0.00017073,2]
[401454455,1768235441033,-500.0,0.00017073,2]
[401454457,1768235441043,-500.0,0.00017073,2]
[401454458,1768235441052,-500.0,0.00017073,2]
[401454460,1768235441063,-500.0,0.00017073,2]
[401454461,1768235441072,-500.0,0.00017073,2]
[401454462,1768235441081,-502.77849751,0.00017073,2]
[401454463,1768235441090,-511.71385202,0.00017073,2]
[401454464,1768235441100,-501.95794831,0.00017073,2]
[401454465,1768235441109,-158.8798646,0.00017073,2]
[401454466,1768235441118,-789.0,0.00017073,2]
[401454467,1768235441128,-150.0,0.00017078,2]
[401454468,1768235441138,-152.92662848,0.00017083,2]
[401454469,1768235441147,-500.0,0.00017083,2]
[401454470,1768235441157,-500.0,0.00017087,2]
[401454471,1768235441167,-674.0,0.00017087,2]
[401454472,1768235441176,-280.42924212,0.00017088,2]
[401454473,1768235441186,-639.34,0.0001709,2]
[401454474,1768235441196,-151.0,0.00017095,2]
[401454475,1768235441206,-151.0,0.00017095,2]
[401454476,1768235441217,-500.0,0.00017097,2]
[401454477,1768235441226,-500.0,0.00017097,2]
[401454478,1768235441236,-500.0,0.00017097,2]
[401454479,1768235441246,-500.0,0.00017097,2]
[401454480,1768235441256,-515.41,0.00017097,2]
[401454481,1768235441266,-330362.6901792,0.00017098,2]
[401454482,1768235441276,-229248.5130377,0.00017098,2]
[401454483,1768235441285,-283735.6127946,0.00017098,2]
[401454484,1768235441295,-4087.0442737,0.00017098,2]
[401454485,1768235441305,-10979.8984311,0.00017098,2]
[401454486,1768235441314,-151.0,0.00017098,2]
[401454487,1768235441324,-178.723506,0.00017098,2]
[401454488,1768235441333,-151.0,0.00017098,2]
[401454489,1768235441343,-151.0,0.00017098,2]
[401454490,1768235441352,-777.804847,0.00017098,2]
[401454491,1768235441362,-842.057944,0.00017098,2]
[401454493,1768235441371,-151.0,0.00017098,2]
[401454494,1768235441380,-151.0,0.00017098,2]
[401454495,1768235441390,-777.804847,0.00017098,2]
[401454496,1768235441400,-151.0,0.00017098,2]
[401454497,1768235441409,-151.0,0.00017098,2]
[401454498,1768235441419,-842.057944,0.00017098,2]
[401454499,1768235441428,-777.804847,0.00017098,2]
[401454500,1768235441438,-199.367871,0.00017098,2]
[401454501,1768235441447,-151.0,0.00017098,2]
[401454502,1768235441458,-777.804847,0.00017098,2]
[401454503,1768235441468,-151.0,0.00017098,2]
[401454504,1768235441477,-842.057944,0.00017098,2]
[401454505,1768235441488,-1847.877127,0.00017098,2]
[401454506,1768235441498,-842.057944,0.00017098,2]
[401454507,1768235441507,-1847.877127,0.00017098,2]
[401454508,1768235441517,-1847.877127,0.00017098,2]
[401454509,1768235441526,-151.0,0.00017098,2]
[401454510,1768235441536,-1847.877127,0.00017098,2]
[401454511,1768235441546,-866.607694,0.00017098,2]
[401454512,1768235441556,-866.607694,0.00017098,2]
[401454513,1768235441566,-151.0,0.00017098,2]
[401454514,1768235441575,-866.607694,0.00017098,2]
[401454515,1768235441585,-151.0,0.00017098,2]
[401454516,1768235441594,-866.607694,0.00017098,2]
[401454517,1768235441603,-2544.397561,0.00017098,2]
[401454518,1768235441613,-2544.397561,0.00017098,2]
[401454519,1768235441622,-2544.397561,0.00017098,2]
[401454520,1768235441632,-2544.397561,0.00017098,2]
[401454521,1768235441641,-162.036793,0.00017098,2]
[401454522,1768235441650,-771.460055,0.00017098,2]
[401454523,1768235441659,-832.7422,0.00017098,2]
[401454524,1768235441669,-771.460055,0.00017098,2]
[401454525,1768235441683,-832.7422,0.00017098,2]
[401454526,1768235441693,-771.460055,0.00017098,2]
[401454527,1768235441703,-832.7422,0.00017098,2]
[401454528,1768235441712,-151.0,0.00017098,2]
[401454529,1768235441723,-771.460055,0.00017098,2]
[401454530,1768235441736,-151.0,0.00017098,2]
[401454531,1768235441746,-832.7422,0.00017098,2]
[401454532,1768235441755,-151.0,0.00017098,2]
[401454533,1768235441765,-151.0,0.00017098,2]
[401454534,1768235441775,-151.0,0.00017098,2]
[401454535,1768235441784,-151.0,0.00017098,2]
[401454536,1768235441794,-242.100876,0.00017098,2]
[401454537,1768235441803,-151.0,0.00017098,2]
[401454538,1768235441813,-257.591853,0.00017098,2]
[401454539,1768235441822,-151.0,0.00017098,2]
[401454540,1768235441831,-151.0,0.00017098,2]
[401454541,1768235441840,-257.591853,0.00017098,2]
[401454542,1768235441850,-151.0,0.00017098,2]
[401454543,1768235441859,-257.591853,0.00017098,2]
[401454544,1768235441868,-1888.793769,0.00017098,2]
[401454545,1768235441878,-151.0,0.00017098,2]
[401454546,1768235441887,-151.0,0.00017098,2]
[401454547,1768235441897,-1888.793769,0.00017098,2]
[401454548,1768235441907,-151.0,0.00017098,2]
[401454549,1768235441916,-257.591853,0.00017098,2]
[401454550,1768235441926,-151.0,0.00017098,2]
[401454551,1768235441958,-1888.793769,0.00017098,2]
[401454552,1768235441974,-440.919773,0.00017098,2]
[401454553,1768235441994,-902.413371,0.00017098,2]
[401454554,1768235442008,-1888.793769,0.00017098,2]
[401454555,1768235442020,-440.919773,0.00017098,2]
[401454556,1768235442034,-404.421894,0.00017098,2]
[401454557,1768235442049,-902.413371,0.00017098,2]
[401454558,1768235442063,-151.0,0.00017098,2]
[401454559,1768235442078,-440.919773,0.00017098,2]
[401454560,1768235442092,-2315.94614,0.00017098,2]
[401454561,1768235442105,-404.421894,0.00017098,2]
[401454562,1768235442117,-265.615145,0.00017098,2]
[401454563,1768235442128,-902.413371,0.00017098,2]
[401454564,1768235442142,-440.919773,0.00017098,2]
[401454565,1768235442156,-2315.94614,0.00017098,2]
[401454566,1768235442170,-404.421894,0.00017098,2]
[401454567,1768235442184,-265.615145,0.00017098,2]
[401454568,1768235442198,-902.413371,0.00017098,2]
[401454569,1768235442212,-2315.94614,0.00017098,2]
[401454570,1768235442230,-404.421894,0.00017098,2]
[401454571,1768235442243,-151.0,0.00017098,2]
[401454572,1768235442257,-265.615145,0.00017098,2]
[401454573,1768235442271,-260.919522,0.00017098,2]
[401454574,1768235442284,-151.0,0.00017098,2]
[401454575,1768235442299,-2315.94614,0.00017098,2]
[401454576,1768235442314,-265.615145,0.00017098,2]
[401454577,1768235442329,-151.0,0.00017098,2]
[401454578,1768235442344,-260.919522,0.00017098,2]
[401454579,1768235442358,-151.0,0.00017098,2]
[401454580,1768235442368,-260.919522,0.00017098,2]
[401454581,1768235442380,-151.0,0.00017098,2]
[401454582,1768235442394,-260.919522,0.00017098,2]
[401454583,1768235442412,-151.0,0.00017098,2]
[401454584,1768235442424,-202.183274,0.00017098,2]
[401454585,1768235442435,-151.0,0.00017098,2]
[401454586,1768235442446,-202.183274,0.00017098,2]
[401454587,1768235442458,-151.0,0.00017098,2]
[401454588,1768235442475,-202.183274,0.00017098,2]
[401454589,1768235442489,-151.0,0.00017098,2]
[401454590,1768235442500,-202.183274,0.00017098,2]
[401454591,1768235442511,-1647.039821,0.00017098,2]
[401454592,1768235442523,-1647.039821,0.00017098,2]
[401454593,1768235442537,-1647.039821,0.00017098,2]
[401454594,1768235442549,-1647.039821,0.00017098,2]
[401454595,1768235442561,-151.0,0.00017098,2]
[401454596,1768235442574,-82857.9802451,0.00017098,2]
[401454597,1768235442587,-4268.298126,0.00017098,2]
[401454598,1768235442599,-151.0,0.00017098,2]
[401454599,1768235442612,-4268.298126,0.00017098,2]
[401454600,1768235442624,-4268.298126,0.00017098,2]
[401454601,1768235442637,-4268.298126,0.00017098,2]
[401454602,1768235442649,-151.0,0.00017098,2]
[401454603,1768235442673,-151.0,0.00017098,2]
[401454604,1768235442686,-151.0,0.00017098,2]
[401454605,1768235442698,-151.0,0.00017098,2]
[401454606,1768235442711,-151.0,0.00017098,2]
[401454607,1768235442724,-264.944293,0.00017098,2]
[401454608,1768235442737,-151.0,0.00017098,2]
[401454609,1768235442750,-156.729657,0.00017098,2]
[401454610,1768235442762,-406.875021,0.00017098,2]
[401454611,1768235442774,-151.0,0.00017098,2]
[401454612,1768235442786,-406.875021,0.00017098,2]
[401454613,1768235442799,-151.0,0.00017098,2]
[401454614,1768235442813,-151.0,0.00017098,2]
[401454615,1768235442825,-151.0,0.00017098,2]
[401454616,1768235442837,-151.0,0.00017098,2]
[401454618,1768235442850,-406.875021,0.00017098,2]
[401454619,1768235442863,-151.0,0.00017098,2]
[401454620,1768235442877,-151.0,0.00017098,2]
[401454622,1768235442890,-406.875021,0.00017098,2]
[401454624,1768235442903,-283.03324,0.00017098,2]
[401454626,1768235442915,-4384.716023,0.00017098,2]
[401454627,1768235442930,-476.05072,0.00017098,2]
[401454628,1768235442942,-4384.716023,0.00017098,2]
[401454629,1768235442954,-151.0,0.00017098,2]
[401454630,1768235442968,-151.0,0.00017098,2]
[401454631,1768235442982,-402.021243,0.00017098,2]
[401454632,1768235442994,-476.05072,0.00017098,2]
[401454633,1768235443006,-151.0,0.00017098,2]
[401454634,1768235443020,-4384.716023,0.00017098,2]
[401454635,1768235443032,-151.0,0.00017098,2]
[401454636,1768235443044,-402.021243,0.00017098,2]
[401454637,1768235443057,-476.05072,0.00017098,2]
[401454638,1768235443069,-4384.716023,0.00017098,2]
[401454639,1768235443082,-476.05072,0.00017098,2]
[401454640,1768235443095,-214.643691,0.00017098,2]
[401454641,1768235443109,-1591.869563,0.00017098,2]
[401454642,1768235443122,-214.643691,0.00017098,2]
[401454643,1768235443135,-151.0,0.00017098,2]
[401454644,1768235443147,-151.0,0.00017098,2]
[401454645,1768235443159,-151.0,0.00017098,2]
[401454646,1768235443171,-371.528882,0.00017098,2]
[401454647,1768235443183,-214.643691,0.00017098,2]
[401454648,1768235443195,-1591.869563,0.00017098,2]
[401454649,1768235443208,-151.0,0.00017098,2]
[401454650,1768235443220,-214.643691,0.00017098,2]
[401454651,1768235443233,-1591.869563,0.00017098,2]
[401454652,1768235443245,-371.528882,0.00017098,2]
[401454653,1768235443257,-402.021243,0.00017098,2]
[401454654,1768235443270,-1591.869563,0.00017098,2]
[401454655,1768235443282,-371.528882,0.00017098,2]
[401454656,1768235443295,-286.532901,0.00017098,2]
[401454657,1768235443307,-402.021243,0.00017098,2]
[401454658,1768235443319,-927.543865,0.00017098,2]
[401454659,1768235443331,-371.528882,0.00017098,2]
[401454660,1768235443344,-286.532901,0.00017098,2]
[401454661,1768235443356,-927.543865,0.00017098,2]
[401454662,1768235443368,-1413.021714,0.00017098,2]
[401454663,1768235443380,-2693.835854,0.00017098,2]
[401454664,1768235443392,-286.532901,0.00017098,2]
[401454665,1768235443405,-927.543865,0.00017098,2]
[401454666,1768235443417,-1413.021714,0.00017098,2]
[401454667,1768235443430,-286.532901,0.00017098,2]
[401454668,1768235443443,-2693.835854,0.00017098,2]
[401454669,1768235443456,-151.0,0.00017098,2]
[401454670,1768235443470,-1413.021714,0.00017098,2]
[401454671,1768235443484,-927.543865,0.00017098,2]
[401454672,1768235443496,-2693.835854,0.00017098,2]
[401454673,1768235443508,-182.853172,0.00017098,2]
[401454674,1768235443521,-1413.021714,0.00017098,2]
[401454675,1768235443533,-718.397083,0.00017098,2]
[401454676,1768235443546,-2693.835854,0.00017098,2]
[401454677,1768235443558,-718.397083,0.00017098,2]
[401454678,1768235443570,-2096.876442,0.00017098,2]
[401454679,1768235443582,-2096.876442,0.00017098,2]
[401454680,1768235443595,-151.0,0.00017098,2]
[401454681,1768235443608,-2096.876442,0.00017098,2]
[401454682,1768235443621,-718.397083,0.00017098,2]
[401454683,1768235443635,-2096.876442,0.00017098,2]
[401454684,1768235443648,-718.397083,0.00017098,2]
[401454685,1768235443659,-151.0,0.00017098,2]
[401454686,1768235443672,-151.0,0.00017098,2]
[401454687,1768235443686,-169.265713,0.00017098,2]
[401454688,1768235443699,-179.570681,0.00017098,2]
[401454689,1768235443711,-151.0,0.00017098,2]
[401454690,1768235443724,-151.0,0.00017098,2]
[401454691,1768235443737,-151.0,0.00017098,2]
[401454692,1768235443751,-151.0,0.00017098,2]
[401454693,1768235443763,-273.411244,0.00017098,2]
[401454694,1768235443775,-233.506514,0.00017098,2]
[401454695,1768235443788,-151.0,0.00017098,2]
[401454696,1768235443800,-233.506514,0.00017098,2]
[401454697,1768235443812,-151.0,0.00017098,2]
[401454698,1768235443824,-585.678073,0.00017098,2]
[401454699,1768235443836,-233.506514,0.00017098,2]
[401454700,1768235443848,-585.678073,0.00017098,2]
[401454701,1768235443860,-151.0,0.00017098,2]
[401454702,1768235443872,-233.506514,0.00017098,2]
[401454703,1768235443884,-585.678073,0.00017098,2]
[401454704,1768235443896,-585.678073,0.00017098,2]
[401454705,1768235443909,-7217.118309,0.00017098,2]
[401454706,1768235443921,-199.646617,0.00017098,2]
[401454707,1768235443933,-175.624249,0.00017098,2]
[401454708,1768235443946,-156.283737,0.00017098,2]
[401454709,1768235443958,-7217.118309,0.00017098,2]
[401454710,1768235443970,-199.646617,0.00017098,2]
[401454711,1768235443983,-175.624249,0.00017098,2]
[401454712,1768235443996,-2704.225356,0.00017098,2]
[401454713,1768235444008,-7217.118309,0.00017098,2]
[401454714,1768235444020,-199.646617,0.00017098,2]
[401454715,1768235444032,-175.624249,0.00017098,2]
[401454716,1768235444044,-2239.607864,0.00017098,2]
[401454717,1768235444056,-151.0,0.00017098,2]
[401454718,1768235444068,-2704.225356,0.00017098,2]
[401454719,1768235444079,-199.646617,0.00017098,2]
[401454720,1768235444091,-7217.118309,0.00017098,2]
[401454721,1768235444103,-151.0,0.00017098,2]
[401454722,1768235444115,-2239.607864,0.00017098,2]
[401454723,1768235444127,-151.0,0.00017098,2]
[401454724,1768235444139,-2704.225356,0.00017098,2]
[401454725,1768235444151,-151.0,0.00017098,2]
[401454726,1768235444162,-2239.607864,0.00017098,2]
[401454727,1768235444175,-2704.225356,0.00017098,2]
[401454728,1768235444187,-151.0,0.00017098,2]
[401454729,1768235444199,-2239.607864,0.00017098,2]
[401454730,1768235444211,-151.0,0.00017098,2]
[401454731,1768235444223,-151.0,0.00017098,2]
[401454732,1768235444237,-2835.36155,0.00017098,2]
[401454733,1768235444249,-151.0,0.00017098,2]
[401454734,1768235444260,-151.0,0.00017098,2]
[401454735,1768235444272,-151.0,0.00017098,2]
[401454736,1768235444284,-175.624249,0.00017098,2]
[401454737,1768235444296,-151.0,0.00017098,2]
[401454738,1768235444308,-2835.36155,0.00017098,2]
[401454739,1768235444319,-151.0,0.00017098,2]
[401454740,1768235444331,-190.188843,0.00017098,2]
[401454741,1768235444343,-237.288774,0.00017098,2]
[401454742,1768235444354,-230.93569906,0.00017099,2]
[401454743,1768235444366,-922.81905344,0.00017099,2]
[401454744,1768235444379,-150.0,0.000171,2]
[401454745,1768235444391,-150.0,0.000171,2]
[401454746,1768235444403,-150.0,0.000171,2]
[401454747,1768235444415,-150.0,0.000171,2]
[401454748,1768235444426,-150.0,0.000171,2]
[401454749,1768235444438,-1924.9224747,0.000171,2]
[401454750,1768235444450,-151.0,0.000171,2]
[401454751,1768235444461,-151.0,0.000171,2]
[401454752,1768235444473,-200.0,0.000171,2]
[401454753,1768235444486,-150.0,0.00017122,2]
[401454754,1768235444497,-343.0,0.00017127,2]
[401454755,1768235444509,-789.0,0.00017128,2]
[401454756,1768235444520,-1000.0,0.00017133,2]
[401454757,1768235444532,-150.0,0.00017136,2]
[401454758,1768235444544,-9468.35149038,0.00017138,2]
[401454759,1768235444555,-151.0,0.00017138,2]
[401454760,1768235444567,-865.67722,0.00017138,2]
[401454761,1768235444579,-151.0,0.00017138,2]
[401454762,1768235444591,-865.67722,0.00017138,2]
[401454763,1768235444602,-796.6404,0.00017138,2]
[401454764,1768235444613,-865.67722,0.00017138,2]
[401454765,1768235444624,-796.6404,0.00017138,2]
[401454766,1768235444634,-865.67722,0.00017138,2]
[401454767,1768235444645,-796.6404,0.00017138,2]
[401454768,1768235444656,-796.6404,0.00017138,2]
[401454769,1768235444667,-168.758337,0.00017138,2]
[401454770,1768235444681,-151.0,0.00017138,2]
[401454771,1768235444693,-193.154792,0.00017138,2]
[401454772,1768235444704,-193.154792,0.00017138,2]
[401454773,1768235444716,-193.154792,0.00017138,2]
[401454774,1768235444728,-151.0,0.00017138,2]
[401454775,1768235444739,-193.154792,0.00017138,2]
[401454776,1768235444751,-154.522751,0.00017138,2]
[401454777,1768235444764,-361.564037,0.00017138,2]
[401454778,1768235444776,-287.935837,0.00017138,2]
[401454779,1768235444788,-154.522751,0.00017138,2]
[401454780,1768235444800,-361.564037,0.00017138,2]
[401454781,1768235444812,-287.935837,0.00017138,2]
[401454782,1768235444826,-405.045724,0.00017138,2]
[401454783,1768235444837,-151.0,0.00017138,2]
[401454784,1768235444849,-154.522751,0.00017138,2]
[401454785,1768235444862,-361.564037,0.00017138,2]
[401454786,1768235444873,-287.935837,0.00017138,2]
[401454788,1768235444885,-405.045724,0.00017138,2]
[401454789,1768235444897,-154.522751,0.00017138,2]
[401454790,1768235444908,-151.0,0.00017138,2]
[401454791,1768235444919,-361.564037,0.00017138,2]
[401454792,1768235444931,-151.0,0.00017138,2]
[401454793,1768235444942,-287.935837,0.00017138,2]
[401454794,1768235444953,-405.045724,0.00017138,2]
[401454795,1768235444964,-151.0,0.00017138,2]
[401454796,1768235444979,-151.0,0.00017138,2]
[401454797,1768235444991,-151.0,0.00017138,2]
[401454798,1768235445004,-405.045724,0.00017138,2]
[401454799,1768235445018,-151.0,0.00017138,2]
[401454800,1768235445031,-174.931358,0.00017138,2]
[401454801,1768235445043,-151.0,0.00017138,2]
[401454802,1768235445056,-151.0,0.00017138,2]
[401454803,1768235445068,-258.755539,0.00017138,2]
[401454804,1768235445081,-258.755539,0.00017138,2]
[401454805,1768235445093,-258.755539,0.00017138,2]
[401454806,1768235445106,-258.755539,0.00017138,2]
[401454807,1768235445118,-453.0959,0.00017138,2]
[401454808,1768235445130,-453.0959,0.00017138,2]
[401454809,1768235445142,-151.0,0.00017138,2]
[401454810,1768235445154,-601.216877,0.00017138,2]
[401454811,1768235445166,-453.0959,0.00017138,2]
[401454812,1768235445178,-193.890203,0.00017138,2]
[401454813,1768235445189,-453.0959,0.00017138,2]
[401454814,1768235445201,-601.216877,0.00017138,2]
[401454815,1768235445213,-601.216877,0.00017138,2]
[401454816,1768235445224,-601.216877,0.00017138,2]
[401454817,1768235445237,-883.673582,0.00017138,2]
[401454818,1768235445249,-883.673582,0.00017138,2]
[401454819,1768235445261,-883.673582,0.00017138,2]
[401454820,1768235445272,-883.673582,0.00017138,2]
[401454821,1768235445284,-151.0,0.00017138,2]
[401454822,1768235445295,-151.0,0.00017138,2]
[401454823,1768235445307,-151.0,0.00017138,2]
[401454824,1768235445320,-151.0,0.00017138,2]
[401454825,1768235445331,-151.0,0.00017138,2]
[401454826,1768235445343,-413.911364,0.00017138,2]
[401454827,1768235445354,-151.0,0.00017138,2]
[401454828,1768235445366,-413.911364,0.00017138,2]
[401454829,1768235445377,-172.359513,0.00017138,2]
[401454830,1768235445390,-413.911364,0.00017138,2]
[401454831,1768235445401,-151.0,0.00017138,2]
[401454832,1768235445413,-296.485774,0.00017138,2]
[401454833,1768235445425,-413.911364,0.00017138,2]
[401454834,1768235445437,-151.0,0.00017138,2]
[401454835,1768235445449,-296.485774,0.00017138,2]
[401454836,1768235445461,-296.485774,0.00017138,2]
[401454837,1768235445472,-151.0,0.00017138,2]
[401454838,1768235445486,-296.485774,0.00017138,2]
[401454839,1768235445497,-492.569989,0.00017138,2]
[401454840,1768235445509,-492.569989,0.00017138,2]
[401454841,1768235445520,-492.569989,0.00017138,2]
[401454842,1768235445532,-492.569989,0.00017138,2]
[401454843,1768235445543,-151.0,0.00017138,2]
[401454844,1768235445554,-151.0,0.00017138,2]
[401454845,1768235445566,-151.0,0.00017138,2]
[401454846,1768235445578,-500.0,0.00017142,2]
[401454847,1768235445589,-674.0,0.00017142,2]